bitfinex/quotes_SOLUSD_20250805
["timestamp","ask_amount","ask_price","bid_price","bid_amount"]
[1754408261939,0.03,163.93,163.92,65.6436794]
[1754408262539,0.03,163.93,163.92,71.74421624]
[1754408262968,0.03,163.93,163.92,86.85043181]
[1754408263267,0.03,163.93,163.92,71.74421624]
[1754408263643,0.03,163.93,163.92,86.85043181]
[1754408264350,0.03,163.93,163.92,45.88]
[1754408264865,0.03,163.93,163.86,0.66]
[1754408264866,19.6636794,163.93,163.86,0.66]
[1754408265088,18.9436794,163.91,163.87,45.92]
[1754408265363,18.9436794,163.92,163.87,65.5236794]
[1754408265542,25.04439998,163.92,163.87,65.5236794]
[1754408265731,18.9436794,163.89,163.84,0.66]
[1754408265942,0.97432314,163.91,163.82,43.98]
[1754408266172,18.9436794,163.85,163.83,45.92]
[1754408266373,18.9436794,163.84,163.83,45.92]
[1754408267258,18.9436794,163.85,163.83,45.92]
[1754408267458,0.28432314,163.88,163.83,45.92]
[1754408267650,18.9436794,163.86,163.83,45.92]
[1754408267847,18.9436794,163.87,163.83,46.58]
[1754408268178,25.04542692,163.89,163.84,19.6036794]
[1754408268354,0.97432314,163.88,163.85,45.9]
[1754408268557,18.9436794,163.86,163.82,43.98]
[1754408268766,18.9436794,163.85,163.83,45.92]
[1754408269670,18.9436794,163.85,163.82,43.98]
[1754408269671,25.04719502,163.84,163.82,43.98]
[1754408269972,19.6336794,163.83,163.77,0.06]
[1754408270179,18.9436794,163.79,163.78,45.9]
[1754408271075,19.6336794,163.79,163.78,45.9]
[1754408271279,19.77584097,163.79,163.78,45.9]
[1754408271574,26.02338137,163.79,163.78,45.9]
[1754408271743,52.16554294,163.79,163.78,45.9]
[1754408272272,41.27175851,163.79,163.78,45.9]
[1754408272848,25.33338137,163.79,163.78,45.9]
[1754408273050,51.33338137,163.79,163.78,45.9]
[1754408273252,18.9436794,163.79,163.78,45.9]
[1754408273778,18.9436794,163.81,163.78,46.56]
[1754408274348,26.0,163.81,163.78,46.56]
[1754408274553,4.86913601,163.84,163.78,46.56]
[1754408274554,4.86913601,163.84,163.79,0.66]
[1754408274785,18.9436794,163.86,163.81,18.9436794]
[1754408274985,18.9436794,163.87,163.82,65.4636794]
[1754408275275,18.9436794,163.87,163.83,0.66]
[1754408275464,25.0461849,163.87,163.83,0.66]
[1754408275789,25.0461849,163.87,163.82,64.8036794]
[1754408275790,18.9436794,163.84,163.82,45.86]
[1754408275989,18.9436794,163.85,163.82,45.86]
[1754408276160,26.0,163.88,163.82,45.86]
[1754408276161,44.9436794,163.87,163.83,0.66]
[1754408276361,18.9436794,163.86,163.83,0.66]
[1754408276582,11.73362416,163.88,163.82,45.86]
[1754408276755,18.9436794,163.86,163.82,45.86]
[1754408277090,18.9436794,163.86,163.82,46.52]
[1754408277296,18.9436794,163.83,163.78,18.9436794]
[1754408277631,18.9436794,163.82,163.79,45.84]
[1754408277883,18.9436794,163.82,163.79,46.5]
[1754408278055,18.9436794,163.81,163.79,45.84]
[1754408278364,6.10433983,163.82,163.77,0.06]
[1754408278562,6.10433983,163.82,163.8,45.84]
[1754408278753,18.9436794,163.81,163.8,45.84]
[1754408279776,25.33263595,163.81,163.8,45.84]
[1754408279969,26.02263595,163.81,163.8,45.84]
[1754408280479,26.16479752,163.81,163.8,45.84]
[1754408280853,41.27101309,163.81,163.8,45.84]
[1754408281053,41.39053871,163.78,163.77,0.06]
[1754408281373,0.42648471,163.77,163.73,45.82]
[1754408281581,18.9436794,163.74,163.73,45.82]
[1754408281777,6.10678491,163.76,163.73,45.82]
[1754408281982,18.9436794,163.74,163.73,45.82]
[1754408282294,16.09607439,163.79,163.73,45.82]
[1754408282295,0.14216157,163.81,163.73,52.58751321]
[1754408282508,18.9436794,163.78,163.74,0.66]
[1754408282707,18.9436794,163.75,163.73,45.82]
[1754408282872,18.9436794,163.74,163.73,45.82]
[1754408283207,18.9436794,163.75,163.73,46.48]
[1754408283386,18.9436794,163.74,163.73,45.82]
[1754408283583,18.9436794,163.75,163.73,46.52]
[1754408283904,18.9436794,163.74,163.73,45.82]
[1754408284316,19.22800254,163.74,163.73,45.82]
[1754408284479,19.88800254,163.74,163.73,45.82]
[1754408284801,19.88800254,163.74,163.71,0.06]
[1754408284802,26.28432314,163.72,163.71,0.06]
[1754408284998,60.47637968,163.72,163.71,1e-08]
[1754408285170,61.13637968,163.72,163.71,1e-08]
[1754408285884,67.24436892,163.72,163.71,1e-08]
[1754408286207,51.47815335,163.72,163.71,1e-08]
[1754408286577,45.22800254,163.72,163.71,1e-08]
[1754408286904,51.05166864,163.72,163.71,1e-08]
[1754408287281,52.13815335,163.72,163.71,1e-08]
[1754408287624,51.33599178,163.72,163.71,1e-08]
[1754408288811,67.24436892,163.72,163.71,1e-08]
[1754408295018,84.94141392,163.72,163.71,1e-08]
[1754408295210,85.60141392,163.72,163.71,1e-08]
[1754408295389,67.24436892,163.72,163.71,1e-08]
[1754408295592,66.58436892,163.72,163.71,1e-08]
[1754408295810,24.46503424,163.72,163.71,1e-08]
[1754408296011,37.3007244,163.72,163.71,0.70000001]
[1754408296502,18.357045,163.72,163.71,0.70000001]
[1754408296710,37.3007244,163.72,163.71,0.70000001]
[1754408297221,18.9436794,163.72,163.71,0.70000001]
[1754408297429,6.10687022,163.75,163.71,0.70000001]
[1754408297430,0.14216157,163.74,163.71,0.70000001]
[1754408297613,18.9436794,163.73,163.72,0.7]
[1754408297806,44.9436794,163.73,163.72,0.7]
[1754408298228,18.9436794,163.73,163.72,0.7]
[1754408298408,0.28432314,163.74,163.72,0.7]
[1754408298606,19.22800254,163.74,163.73,0.7]
[1754408298797,6.10687022,163.75,163.73,0.7]
[1754408298798,18.9436794,163.75,163.73,0.7]
[1754408299026,18.9436794,163.75,163.74,0.7]
[1754408299504,21.21485857,163.81,163.74,0.7]
[1754408299505,6.108643,163.81,163.74,0.7]
[1754408299805,18.9436794,163.8,163.74,19.6436794]
[1754408300031,18.9436794,163.77,163.75,0.7]
[1754408300209,18.9436794,163.76,163.75,0.7]
[1754408300415,18.9436794,163.76,163.75,46.36]
[1754408300617,25.05017671,163.76,163.75,45.66]
[1754408300824,18.9436794,163.76,163.75,45.66]
[1754408301023,18.9436794,163.76,163.75,46.36]
[1754408301233,18.9436794,163.76,163.71,1e-08]
[1754408301234,25.05017671,163.76,163.74,45.66]
[1754408301437,6.10649731,163.76,163.74,45.66]
[1754408301612,18.9436794,163.75,163.74,46.36]
[1754408301815,6.24839398,163.77,163.74,46.36]
[1754408302037,18.9436794,163.75,163.74,45.66]
[1754408302529,18.9436794,163.77,163.74,45.66]
[1754408302736,18.9436794,163.77,163.75,0.7]
[1754408302941,18.9436794,163.77,163.76,0.7]
[1754408303329,32.10576042,163.78,163.76,0.7]
[1754408303539,26.0,163.78,163.76,0.7]
[1754408303832,18.9436794,163.77,163.76,0.7]
[1754408304136,18.9436794,163.77,163.74,45.66]
[1754408304137,18.9436794,163.78,163.77,0.7]
[1754408304543,6.5285746,163.82,163.77,19.6436794]
[1754408304710,6.5285746,163.82,163.8,18.9436794]
[1754408304906,6.5285746,163.82,163.81,46.32]
[1754408305209,18.9436794,163.82,163.78,0.7]
[1754408305433,26.0,163.82,163.81,45.62]
[1754408305926,26.0,163.82,163.81,46.32]
[1754408306132,0.14216157,163.87,163.81,46.32]
[1754408306133,6.10239824,163.87,163.81,46.32]
[1754408306313,6.10239824,163.87,163.82,0.7]
[1754408306513,18.9436794,163.84,163.82,0.7]
[1754408306713,18.9436794,163.84,163.76,15.10621557]
[1754408306714,18.9436794,163.83,163.76,15.10621557]
[1754408306923,18.9436794,163.83,163.77,0.7]
[1754408306924,0.28432314,163.82,163.77,0.7]
[1754408307122,0.28432314,163.82,163.78,45.6]
[1754408307340,18.9436794,163.79,163.78,45.6]
[1754408307738,19.22800254,163.79,163.78,45.6]
[1754408308632,25.33338137,163.79,163.76,45.62]
[1754408308932,25.33338137,163.79,163.76,45.64]
[1754408308933,18.9436794,163.77,163.76,45.64]
[1754408309137,6.38970197,163.79,163.76,46.34]
[1754408309337,18.9436794,163.77,163.76,46.34]
[1754408309514,6.38970197,163.79,163.76,46.34]
[1754408309714,18.9436794,163.77,163.76,46.34]
[1754408310443,18.9436794,163.77,163.74,45.6]
[1754408310613,18.9436794,163.75,163.74,45.6]
[1754408311240,18.9436794,163.75,163.74,46.3]
[1754408311442,0.14216157,163.82,163.74,46.3]
[1754408311650,26.14216157,163.8,163.75,0.7]
[1754408311845,26.14216157,163.8,163.76,46.32]
[1754408311846,18.9436794,163.78,163.76,46.32]
[1754408312048,18.9436794,163.77,163.76,46.32]
[1754408312942,25.04980384,163.77,163.76,45.62]
[1754408313518,18.9436794,163.77,163.76,45.62]
[1754408313831,18.9436794,163.78,163.76,46.27]
[1754408314139,18.9436794,163.78,163.77,0.65]
[1754408314650,18.9436794,163.8,163.77,0.65]
[1754408314825,18.9436794,163.79,163.77,0.65]
[1754408315227,18.9436794,163.78,163.76,45.62]
[1754408315434,18.9436794,163.77,163.76,45.62]
[1754408315773,0.71,163.77,163.76,45.62]
[1754408316054,18.9436794,163.77,163.76,45.62]
[1754408316229,18.9436794,163.77,163.76,46.27]
[1754408316843,0.28432314,163.8,163.76,45.62]
[1754408317047,18.9436794,163.77,163.76,45.62]
[1754408317430,6.38945888,163.8,163.76,45.62]
[1754408317630,18.9436794,163.77,163.76,45.62]
[1754408317835,18.9436794,163.78,163.76,46.27]
[1754408318023,18.9436794,163.78,163.77,0.65]
[1754408318227,18.9436794,163.8,163.77,0.65]
[1754408318426,20.94378429,163.89,163.79,18.9436794]
[1754408318639,20.94378429,163.89,163.8,52.29491337]
[1754408318640,18.9436794,163.86,163.8,52.29491337]
[1754408318945,18.9436794,163.85,163.81,0.65]
[1754408319153,23.790006,163.88,163.83,18.9436794]
[1754408319322,6.10128126,163.9,163.8,51.64491337]
[1754408319323,18.9436794,163.87,163.84,46.23]
[1754408319835,18.9436794,163.87,163.82,45.58]
[1754408319836,0.14216157,163.84,163.82,45.58]
[1754408320041,19.93800254,163.83,163.82,45.58]
[1754408320236,35.18637968,163.83,163.75,0.65]
[1754408320440,0.28432314,163.8,163.76,45.6]
[1754408320749,18.9436794,163.77,163.73,0.65]
[1754408320927,18.9436794,163.76,163.74,46.25]
[1754408321117,18.9436794,163.77,163.75,0.65]
[1754408321321,18.9436794,163.76,163.75,0.65]
[1754408321522,18.9436794,163.76,163.74,45.6]
[1754408321745,18.9436794,163.75,163.74,45.6]
[1754408322824,25.05054962,163.75,163.74,45.6]
[1754408323637,18.9436794,163.75,163.74,45.6]
[1754408323845,18.9436794,163.76,163.74,46.25]
[1754408324153,18.9436794,163.76,163.75,0.65]
[1754408324553,18.9436794,163.76,163.74,45.6]
[1754408324769,18.9436794,163.75,163.74,45.6]
[1754408325951,6.10660235,163.76,163.74,45.6]
[1754408326152,18.9436794,163.75,163.74,46.25]
[1754408326864,6.39023526,163.78,163.74,46.25]
[1754408327030,18.9436794,163.75,163.74,46.25]
[1754408328549,18.9436794,163.75,163.74,45.6]
[1754408329546,19.93800254,163.75,163.74,45.6]
[1754408329744,19.22800254,163.75,163.74,45.6]
[1754408330159,19.93800254,163.75,163.74,45.6]
[1754408330426,19.22800254,163.75,163.74,45.6]
[1754408330843,45.22800254,163.75,163.74,45.6]
[1754408331244,51.33487276,163.75,163.74,45.6]
[1754408333932,67.31204833,163.75,163.71,1e-08]
[1754408334127,67.31204833,163.75,163.71,45.38000001]
[1754408334128,19.22800254,163.72,163.71,45.38000001]
[1754408334333,19.93800254,163.72,163.71,45.38000001]
[1754408334543,19.22800254,163.72,163.71,45.38000001]
[1754408334736,12.83924666,163.72,163.71,45.38000001]
[1754408335641,18.9472359,163.72,163.71,45.38000001]
[1754408338569,19.79939747,163.72,163.71,45.38000001]
[1754408338765,23.87108041,163.72,163.71,45.38000001]
[1754408338971,19.79939747,163.72,163.71,45.38000001]
[1754408339270,19.08939747,163.72,163.71,45.38000001]
[1754408339570,23.16257208,163.72,163.71,45.38000001]
[1754408339771,10.46548699,163.72,163.71,45.38000001]
[1754408339972,23.02041051,163.72,163.71,45.38000001]
[1754408340141,23.87257208,163.72,163.71,45.38000001]
[1754408340348,23.02041051,163.72,163.71,45.38000001]
[1754408340656,23.02041051,163.72,163.71,1e-08]
[1754408340657,23.87257208,163.72,163.71,1e-08]
[1754408340857,0.42648471,163.71,163.69,0.06]
[1754408341062,0.42648471,163.71,163.66,0.06]
[1754408341063,12.83924666,163.67,163.66,0.06]
[1754408341245,18.61328643,163.67,163.66,0.06]
[1754408341444,22.68987283,163.67,163.66,0.06]
[1754408341740,21.97987283,163.67,163.66,0.06]
[1754408341954,27.94756645,163.67,163.66,0.06]
[1754408342374,16.63150992,163.67,163.66,0.71]
[1754408342680,12.55492352,163.69,163.66,46.09]
[1754408342976,12.55492352,163.69,163.66,45.44]
[1754408342977,12.83924666,163.67,163.66,45.44]
[1754408343141,38.98140823,163.67,163.66,0.06]
[1754408343340,43.76108892,163.67,163.66,0.06]
[1754408343548,43.76108892,163.67,163.62,0.1]
[1754408343549,15.53270028,163.66,163.62,0.1]
[1754408343767,54.0876238,163.63,163.56,0.1]
[1754408344069,18.66851403,163.57,163.56,0.1]
[1754408344483,0.28432314,163.6,163.56,0.1]
[1754408344648,12.55492352,163.57,163.56,0.1]
[1754408344846,12.55492352,163.58,163.56,0.82]
[1754408345047,12.55492352,163.58,163.57,0.72]
[1754408345578,0.28432314,163.62,163.57,0.72]
[1754408345774,12.55492352,163.61,163.57,0.72]
[1754408345943,12.55492352,163.58,163.57,0.72]
[1754408346271,12.55492352,163.58,163.56,0.1]
[1754408346473,12.55492352,163.57,163.56,0.1]
[1754408346775,12.83924666,163.57,163.56,0.1]
[1754408346950,13.69140823,163.57,163.56,0.1]
[1754408347642,38.83924666,163.57,163.56,0.1]
[1754408347987,38.55492352,163.57,163.56,0.1]
[1754408348769,0.28432314,163.59,163.56,0.82]
[1754408348978,12.55492352,163.57,163.56,0.1]
[1754408349379,0.28432314,163.59,163.56,0.1]
[1754408349686,6.11478,163.63,163.56,0.1]
[1754408349978,38.55492352,163.61,163.56,6.21396429]
[1754408350280,12.55492352,163.59,163.57,0.72]
[1754408350852,12.55492352,163.6,163.58,0.72]
[1754408351052,12.55492352,163.6,163.56,0.1]
[1754408351255,26.0,163.61,163.56,0.1]
[1754408351256,12.55492352,163.59,163.56,0.82]
[1754408351779,12.55492352,163.6,163.57,0.72]
[1754408351982,12.55492352,163.6,163.58,0.72]
[1754408352182,12.55492352,163.59,163.56,0.1]
[1754408352355,12.55492352,163.57,163.56,0.1]
[1754408353093,13.54924666,163.57,163.56,0.1]
[1754408353456,13.69140823,163.57,163.56,0.1]
[1754408354479,19.80499874,163.57,163.56,0.1]
[1754408355478,44.95283717,163.57,163.56,0.1]
[1754408355686,38.83924666,163.57,163.56,0.1]
[1754408355885,44.95283717,163.57,163.56,0.1]
[1754408356054,38.83924666,163.57,163.56,0.1]
[1754408356458,45.66283717,163.57,163.56,0.1]
[1754408356680,45.80499874,163.57,163.56,0.1]
[1754408356979,26.0,163.57,163.56,0.1]
[1754408357184,38.55492352,163.57,163.56,0.82]
[1754408357372,6.5484007,163.59,163.56,0.82]
[1754408357699,19.10332422,163.59,163.57,0.72]
[1754408357856,6.5484007,163.59,163.57,0.72]
[1754408358057,19.10332422,163.59,163.57,0.72]
[1754408358593,12.55492352,163.58,163.57,0.72]
[1754408358757,19.10332422,163.59,163.57,0.72]
[1754408358954,12.55492352,163.58,163.56,0.1]
[1754408359588,12.55492352,163.58,163.56,0.82]
[1754408359959,12.55492352,163.57,163.56,0.1]
[1754408360382,18.95283717,163.57,163.56,0.1]
[1754408360585,44.95283717,163.57,163.56,0.1]
[1754408360780,0.28432314,163.58,163.56,0.82]
[1754408361054,12.55492352,163.57,163.56,0.82]
[1754408361289,12.55492352,163.57,163.56,0.1]
[1754408362087,19.10332422,163.59,163.56,0.82]
[1754408362385,19.10332422,163.59,163.57,0.72]
[1754408362782,12.55492352,163.58,163.56,0.1]
[1754408362987,6.5484007,163.59,163.57,13.27492352]
[1754408363291,12.55492352,163.66,163.58,60.97621557]
[1754408363477,12.55492352,163.66,163.6,12.55492352]
[1754408363657,12.55492352,163.65,163.6,12.55492352]
[1754408364074,12.55492352,163.64,163.59,12.55492352]
[1754408364267,0.71,163.63,163.58,57.97492352]
[1754408364511,0.17216157,163.69,163.61,12.55492352]
[1754408364512,0.71,163.67,163.61,12.55492352]
[1754408364671,38.55492352,163.67,163.61,12.55492352]
[1754408364871,12.55492352,163.65,163.6,12.55492352]
[1754408365126,0.71,163.64,163.59,18.6677666]
[1754408365405,12.55492352,163.62,163.58,51.53310103]
[1754408365606,12.55492352,163.62,163.58,45.42]
[1754408365780,13.26492352,163.62,163.58,45.42]
[1754408365967,0.28432314,163.65,163.6,12.55492352]
[1754408366174,38.55492352,163.64,163.58,51.53319497]
[1754408366476,12.55492352,163.63,163.58,64.08811849]
[1754408366680,0.99432314,163.65,163.6,12.55492352]
[1754408366882,0.28432314,163.66,163.61,12.55492352]
[1754408367196,38.55492352,163.65,163.6,12.55492352]
[1754408367375,13.26492352,163.64,163.58,51.53319497]
[1754408367576,12.55492352,163.64,163.59,12.55492352]
[1754408368014,13.26492352,163.64,163.58,51.53319497]
[1754408368304,12.55492352,163.62,163.58,51.53316425]
[1754408368687,13.26492352,163.62,163.58,45.42]
[1754408368901,12.55492352,163.62,163.58,45.42]
[1754408369101,12.55492352,163.6,163.58,45.42]
[1754408369677,13.26492352,163.6,163.58,45.42]
[1754408370294,13.26492352,163.59,163.58,45.42]
[1754408370588,13.26492352,163.59,163.57,45.4]
[1754408370589,19.52020087,163.59,163.57,45.4]
[1754408370890,13.26492352,163.58,163.57,45.4]
[1754408371210,13.54924666,163.58,163.57,45.4]
[1754408371785,12.55492352,163.58,163.57,45.4]
[1754408371995,0.99432314,163.61,163.57,45.4]
[1754408372188,0.28432314,163.61,163.57,45.4]
[1754408372387,12.55492352,163.63,163.57,64.0684582]
[1754408372877,12.55492352,163.63,163.58,12.55492352]
[1754408373084,0.28432314,163.63,163.58,12.55492352]
[1754408373390,32.11068808,163.65,163.59,12.55492352]
[1754408373589,32.11068808,163.65,163.57,51.51353468]
[1754408373590,12.55492352,163.65,163.6,12.55492352]
[1754408373818,12.55492352,163.65,163.61,45.4]
[1754408374011,6.80999482,163.67,163.61,57.95492352]
[1754408374180,0.03,163.69,163.64,12.55492352]
[1754408374181,12.58492352,163.69,163.64,12.55492352]
[1754408374392,0.03,163.69,163.65,57.95492352]
[1754408375217,12.58492352,163.69,163.65,45.4]
[1754408375400,12.55492352,163.67,163.65,45.4]
[1754408375702,13.25492352,163.66,163.65,45.4]
[1754408376414,13.53924666,163.66,163.65,45.4]
[1754408376594,0.98432314,163.66,163.65,45.4]
[1754408376914,19.64947518,163.66,163.65,45.4]
[1754408377506,0.17216157,163.69,163.65,45.4]
[1754408377507,0.03,163.69,163.65,45.4]
[1754408377738,0.03,163.69,163.65,64.06546133]
[1754408378320,0.03,163.69,163.68,12.55492352]
[1754408378611,0.03,163.69,163.65,51.51053781]
[1754408378993,0.03,163.69,163.65,64.06546133]
[1754408379200,12.55492352,163.66,163.65,45.4]
[1754408379596,12.55492352,163.67,163.65,45.4]
[1754408379825,0.7,163.68,163.65,45.4]
[1754408379826,38.55492352,163.68,163.65,45.4]
[1754408380826,26.0,163.68,163.65,45.4]
[1754408381124,38.55492352,163.68,163.65,45.4]
[1754408381705,45.36452146,163.68,163.65,45.4]
[1754408381906,12.55492352,163.66,163.65,45.4]
[1754408382105,13.25492352,163.66,163.65,45.4]
[1754408382831,0.7,163.66,163.65,45.4]
[1754408383017,13.25492352,163.66,163.65,45.4]
[1754408383224,19.36515204,163.66,163.65,45.4]
[1754408383526,26.0,163.68,163.65,45.4]
[1754408384131,32.10949556,163.68,163.65,45.4]
[1754408384344,44.66441908,163.68,163.65,45.4]
[1754408384642,12.55492352,163.66,163.65,45.4]
[1754408384848,19.64947518,163.66,163.65,45.38]
[1754408385023,0.28432314,163.62,163.57,44.04]
[1754408385235,12.55492352,163.58,163.57,44.04]
[1754408385430,12.55492352,163.58,163.57,89.42]
[1754408385628,13.25492352,163.58,163.57,89.42]
[1754408385935,60.45783159,163.66,163.57,89.42]
[1754408385936,0.7,163.65,163.57,165.93492352]
[1754408386138,39.25492352,163.67,163.61,12.55492352]
[1754408386309,0.14216157,163.66,163.62,45.38]
[1754408386919,26.0,163.67,163.64,12.55492352]
[1754408387318,26.0,163.67,163.65,45.38]
[1754408387903,12.58492352,163.69,163.65,45.38]
[1754408388104,13.53924666,163.68,163.65,45.38]
[1754408388331,12.55492352,163.66,163.65,45.38]
[1754408388635,39.25492352,163.66,163.65,45.38]
[1754408388936,45.93746367,163.66,163.65,45.38]
[1754408389138,52.04769219,163.66,163.65,45.38]
[1754408390011,18.95314053,163.68,163.65,45.38]
[1754408390339,0.28432314,163.68,163.65,45.38]
[1754408390654,44.98314053,163.69,163.65,51.49055769]
[1754408390813,0.7,163.68,163.65,45.38]
[1754408391008,0.7,163.68,163.58,18.95314053]
[1754408391009,0.28432314,163.65,163.58,18.95314053]
[1754408391245,18.95314053,163.64,163.59,64.33314053]
[1754408391538,18.95314053,163.64,163.59,45.38]
[1754408391734,18.95314053,163.64,163.59,64.33314053]
[1754408392032,18.95314053,163.64,163.59,64.39314053]
[1754408392236,18.95314053,163.64,163.59,70.50572112]
[1754408392424,19.23746367,163.65,163.6,18.95314053]
[1754408392824,25.34807392,163.65,163.6,18.95314053]
[1754408393923,19.23746367,163.65,163.6,18.95314053]
[1754408394126,26.0,163.66,163.62,18.95314053]
[1754408394325,26.0,163.66,163.63,45.38]
[1754408394521,26.0,163.66,163.61,6.11188887]
[1754408394522,18.95314053,163.64,163.59,0.06]
[1754408394742,18.95314053,163.64,163.6,45.38]
[1754408394952,19.65314053,163.64,163.6,45.38]
[1754408395315,0.7,163.64,163.6,45.38]
[1754408395610,19.23746367,163.65,163.6,45.38]
[1754408395807,26.04812435,163.65,163.6,64.33314053]
[1754408396246,0.73,163.68,163.64,18.95314053]
[1754408396443,4.80036904,163.68,163.65,45.38]
[1754408396634,10.20998684,163.68,163.65,45.38]
[1754408396825,19.93746367,163.67,163.65,45.38]
[1754408397023,19.23746367,163.67,163.65,45.38]
[1754408397248,0.7,163.66,163.65,45.38]
[1754408397549,19.23746367,163.67,163.65,45.38]
[1754408397550,0.28432314,163.67,163.65,45.38]
[1754408398244,6.39423091,163.67,163.65,45.38]
[1754408398463,19.93746367,163.66,163.65,45.38]
[1754408399219,0.98432314,163.66,163.65,45.38]
[1754408399647,52.04769219,163.66,163.65,45.38]
[1754408399811,37.17168501,163.66,163.65,45.38]
[1754408400017,33.09455166,163.66,163.65,45.38]
[1754408400320,18.98314053,163.68,163.65,64.33314053]
[1754408400321,26.14216157,163.67,163.65,64.33314053]
[1754408400523,0.28432314,163.67,163.66,18.95314053]
[1754408400855,0.03,163.68,163.66,18.95314053]
[1754408401153,0.03,163.68,163.67,18.95314053]
[1754408401737,0.03,163.68,163.67,25.06299572]
[1754408402264,0.03,163.68,163.67,18.95314053]
[1754408402773,1.01432314,163.68,163.66,18.95314053]
[1754408403045,4.39219746,163.68,163.66,18.95314053]
[1754408403357,0.03,163.68,163.67,18.95314053]
[1754408403721,26.0971823,163.68,163.63,18.95314053]
[1754408403935,0.31432314,163.68,163.65,18.95314053]
[1754408404152,0.03,163.68,163.67,18.95314053]
[1754408404450,0.03,163.68,163.67,64.33314053]
[1754408405963,0.03,163.68,163.67,70.44299572]
[1754408406253,0.03,163.68,163.67,64.33314053]
[1754408406446,0.03,163.68,163.67,70.44299572]
[1754408408221,0.03,163.68,163.67,51.48985519]
[1754408408422,0.03,163.68,163.67,64.31314053]
[1754408409375,0.03,163.68,163.67,79.4193561]
[1754408409750,0.03,163.68,163.67,85.52921129]
[1754408410687,0.03,163.68,163.67,79.12245596]
[1754408412158,0.03,163.68,163.67,64.01624039]
[1754408412817,0.03,163.68,163.67,79.12245596]
[1754408413878,0.03,163.68,163.67,79.87560304]
[1754408414190,0.03,163.68,163.67,57.9063852]
[1754408414391,0.03,163.68,163.67,73.15476234]
[1754408415080,0.03,163.68,163.67,85.70114754]
[1754408415474,0.03,163.69,163.68,25.23493197]
[1754408416065,0.03,163.69,163.68,31.34441388]
[1754408416989,0.03,163.69,163.68,18.79802868]
[1754408417362,0.03,163.69,163.68,64.13802868]
[1754408417772,0.03,163.69,163.68,79.24424425]
[1754408418477,0.03,163.7,163.68,91.79062945]
[1754408418692,0.03,163.7,163.69,27.79476234]
[1754408419000,0.03,163.71,163.7,0.14216157]
[1754408419294,0.03,163.71,163.7,73.13476234]
[1754408419988,0.03,163.71,163.7,79.10133626]
[1754408420186,0.03,163.71,163.7,63.99512069]
[1754408420489,0.03,163.71,163.7,79.10133626]
[1754408421066,0.75,163.71,163.7,57.8863852]
[1754408421263,13.2963852,163.71,163.62,15.27844924]
[1754408421572,4.79151018,163.7,163.66,12.5463852]
[1754408421795,0.72,163.69,163.67,57.8863852]
[1754408421985,0.72,163.69,163.68,12.5463852]
[1754408422292,0.03,163.71,163.68,12.5463852]
[1754408422490,4.10121685,163.71,163.66,12.5463852]
[1754408422807,0.72,163.7,163.67,57.8863852]
[1754408422972,0.72,163.69,163.67,45.34]
[1754408423172,0.03,163.71,163.67,57.8863852]
[1754408423380,0.72,163.69,163.67,57.8863852]
[1754408423675,0.03,163.71,163.67,57.8863852]
[1754408423875,0.75,163.71,163.67,57.8863852]
[1754408424094,0.72,163.7,163.67,63.99602722]
[1754408424295,0.72,163.69,163.67,63.99602722]
[1754408424595,0.03,163.71,163.67,63.99602722]
[1754408424898,0.03,163.71,163.68,15.10621557]
[1754408425098,0.03,163.71,163.69,57.8863852]
[1754408425986,0.03,163.71,163.7,12.5463852]
[1754408426300,0.03,163.71,163.66,0.75318442]
[1754408426600,0.72,163.7,163.67,57.8863852]
[1754408426800,0.72,163.7,163.67,63.99624039]
[1754408427296,0.72,163.69,163.67,63.99624039]
[1754408427688,0.03,163.71,163.68,27.65260077]